{"text_format":"1","workbook":"xlsx","n_sheets":3,"sheets":["Spelers","Baanindeling","Handleiding"],"not_rendered":{"charts":0,"images":0,"macros":1,"external_links":0,"defined_names":16,"comments":0,"pivot_tables":0},"unopened":[],"bounds":{"document_bytes":16777216,"sheet_cells":100000,"rows_first":2000,"rows_last":500,"rows_between":2000,"halvings":0,"cell_chars":16384,"cell_head_chars":4096},"cells_cut":0,"cells_raw":0,"read":"whole","date_system":"1900"}

{"sheet":"Spelers","index":0,"n_rows":11,"n_cols":51,"rows_kept":11,"cut":false,"hidden":false,"merged":[[2,12,2,14],[0,30,9,30],[6,3,6,4],[0,27,9,27],[0,28,9,28],[0,29,9,29],[7,3,7,4],[1,12,1,14],[0,10,0,13]]}
[null,"Toss Toernooi Planner",null,null,null,null,null,null,null,null,"Handleiding",null,null,null,null,null,null,null,null,null,null,null,null,null,null,null,null,{"$f":"IF(Kwaliteit=\"Ja\",\"Aantal partijen\",\"\")","v":""},{"$f":"IF(Kwaliteit=\"Ja\",\"Aantal dezelfde tegenstander\",\"\")","v":""},{"$f":"IF(Kwaliteit=\"Ja\",\"Aantal dezelfde partner\",\"\")","v":""},{"$f":"IF(Kwaliteit=\"Ja\",\"Gemiddeld sterkteverschil\",\"\")","v":""}]
[null,null,"Beschikbare banen",7,null,null,"Banen in gebruik",0,null,null,null,"Planningsvoorkeur:","Andere tegenstanders",null,null,"?",null,null,null,null,null,null,null,null,"Toon kwaliteit?","Nee","Ja"]
[null,null,"Starttijd","20:00:00",null,null,null,null,null,null,null,"Volgorde spelers:","Hutsefluts",null,null,null,null,null,null,null,null,null,null,null,{"$f":"IF(Kwaliteit=\"Ja\",\"Aantal partijen met dezelfde tegenstander\",\"\")","v":""},{"$f":"IF(Kwaliteit=\"Ja\",SUM(AC11:AC309)/2,\"\")","v":""},"Nee"]
[null,null,"Rondetijden","00:12:00",null,null,null,null,null,null,"Enkelspel","Nee","Andere tegenstanders",null,"Rechttoe-rechtaan",null,null,null,null,null,null,null,null,null,{"$f":"IF(Kwaliteit=\"Ja\",\"Aantal partijen met dezelfde partner\",\"\")","v":""},{"$f":"IF(AND(Kwaliteit=\"Ja\",Spelvorm=K5),SUM(AD11:AD309)/2,IF(Kwaliteit=\"Ja\",\" n.v.t.\",\"\"))","v":""}]
[null,null,"Wisseltijd","00:03:00",null,null,null,null,null,null,"Wisselende dubbels","Ja (met 1,2,3,...)","Gelijk aantal partijen",null,"Hutsefluts",null,null,null,null,null,null,null,null,null,{"$f":"IF(Kwaliteit=\"Ja\",\"Gemiddeld sterkteverschil over alle wedstrijden\",\"\")","v":""},{"$f":"IF(AND(Kwaliteit=\"Ja\",Sterkte<>\"Nee\"),SUM(AE11:AE309)/AantalSpelers,IF(Kwaliteit=\"Ja\",\" n.v.t.\",\"\"))","v":""}]
[null,null,"Rondes",7,null,null,"Eindtijd",{"$f":"D3+(D6*D4)+(D6-1)*D5","v":"21:42:00"},null,null,"Vaste dubbels","Ja (met Man/Vrouw)",{"$f":"IF(AND(Spelvorm=K5,Sterkte=L6),\"Alleen Man+Vrouw\",M5)","v":"Gelijk aantal partijen"},null,null,null,null,null,null,null,null,null,null,null,{"$f":"IF(Kwaliteit=\"Ja\",\"Rondes met speler die 2 partijen meer speelt dan een ander\",\"\")","v":""},{"$f":"IF(Kwaliteit=\"Ja\",COUNTIF(AF9:AX9,2),\"\")","v":""}]
[null,null,"Spelvorm","Wisselende dubbels",null,null,{"$f":"CONCATENATE(\"Aantal \",IF($D$7=$K$6,\"dubbels\",\"spelers\"))","v":"Aantal spelers"},{"$f":"COUNTIF(A11:A309,\"=*\")","v":1},null,null,null,null,null,"Indeling vasthouden tot en met ronde",null,null,null,null,null,null,null,null,null,null,{"$f":"IF(Kwaliteit=\"Ja\",IF(Z6>0,\"1st in ronde\",\"\"),\"\")","v":""},{"$f":"IF(AND(Kwaliteit=\"Ja\",Z6>0),HLOOKUP(2,AF9:AX10,2,FALSE),\"\")","v":""}]
[null,null,"Sterkte of geslacht per speler?","Nee",null,null,{"$f":"IF(G10=\"\",\"\",TEXT(D3,\"uu:mm\"))","v":"20:00"},{"$f":"IF(H10=\"\",\"\",TEXT(G8+$D$4+$D$5,\"uu:mm\"))","v":"20:15"},"20:30","20:45","21:00","21:15","21:30","","","","","","","","","","","","","",null,null,null,null,null,{"$f":"IF(Kwaliteit=\"Ja\",\"Aantal partijen t/m deze ronde\",\"\")","v":""}]
[null,null,null,null,null,null,null,null,null,null,null,null,null,null,null,null,null,null,null,null,null,null,null,null,null,null,null,null,null,null,null,{"$f":"IF(AND(Kwaliteit=\"Ja\",H10<>\"\"),MAX(AF11:AF311)-MIN(AF11:AF311),\"\")","v":""},"","","","","","","","","","","","","","","","","",""]
[{"$f":"IF($D$7=$K$6,\"Dubbel\",\"Speler\")","v":"Speler"},{"$f":"IF(Sterkte=L5,\"Sterkte\",IF(Sterkte=L4,\"\",IF(AND(Sterkte<>\"\",Sterkte=L6),\"M/V\",\"\")))","v":""},"Stand","#Punten","#Partijen","#Pt/Pa","R-1","R-2","R-3","R-4","R-5","R-6","R-7",null,null,null,null,null,null,null,null,null,null,null,null,null,null,null,null,null,null,{"$f":"IF(AND(Kwaliteit=\"Ja\",G10<>\"\"),G10,\"\")","v":""},"","","","","","","","","","","","","","","","","","",""]
["[naam speler of dubbel]",1,{"$f":"IF(A11<>\"\",1+COUNTIF(F$11:F$310,CONCATENATE(\">\",F11)),\"\")","v":1},{"$f":"IF(A11<>\"\",SUM(G11:Z11),\"\")","v":0},{"$f":"IF(A11<>\"\",COUNTIF(G11:Z11,\">0\"),\"\")","v":0},{"$f":"IF(A11<>\"\",IF(E11>0,D11/E11,0),\"\")","v":0},null,null,null,null,null,null,null,null,null,null,null,null,null,null,null,null,null,null,null,null,null,{"$f":"IF(Kwaliteit=\"Ja\",MAX(AF11:BH11),\"\")","v":""},{"$f":"IF(Kwaliteit=\"Ja\",0,\"\")","v":""},{"$f":"IF(Kwaliteit=\"Ja\",0,\"\")","v":""},{"$f":"IF(AND(Kwaliteit=\"Ja\",Sterkte<>\"Nee\"),0/MAX(AF11:BH11,1),\"\")","v":""},{"$f":"IF(Kwaliteit=\"Ja\",COUNTA(G11:G11),\"\")","v":""},{"$f":"IF(Kwaliteit=\"Ja\",COUNTA(G11:H11),\"\")","v":""},{"$f":"IF(Kwaliteit=\"Ja\",COUNTA(G11:I11),\"\")","v":""},{"$f":"IF(Kwaliteit=\"Ja\",COUNTA(G11:J11),\"\")","v":""},{"$f":"IF(Kwaliteit=\"Ja\",COUNTA(G11:K11),\"\")","v":""},{"$f":"IF(Kwaliteit=\"Ja\",COUNTA(G11:L11),\"\")","v":""},{"$f":"IF(Kwaliteit=\"Ja\",COUNTA(G11:M11),\"\")","v":""}]

{"sheet":"Baanindeling","index":1,"n_rows":1,"n_cols":8,"rows_kept":1,"cut":false,"hidden":false,"merged":[]}
["Tijd - Ronde",{"$f":"CONCATENATE(Spelers!G8,\" - Ronde-1\")","v":"20:00 - Ronde-1"},{"$f":"CONCATENATE(Spelers!H8,\" - Ronde-2\")","v":"20:15 - Ronde-2"},{"$f":"CONCATENATE(Spelers!I8,\" - Ronde-3\")","v":"20:30 - Ronde-3"},{"$f":"CONCATENATE(Spelers!J8,\" - Ronde-4\")","v":"20:45 - Ronde-4"},{"$f":"CONCATENATE(Spelers!K8,\" - Ronde-5\")","v":"21:00 - Ronde-5"},{"$f":"CONCATENATE(Spelers!L8,\" - Ronde-6\")","v":"21:15 - Ronde-6"},{"$f":"CONCATENATE(Spelers!M8,\" - Ronde-7\")","v":"21:30 - Ronde-7"}]

{"sheet":"Handleiding","index":2,"n_rows":55,"n_cols":2,"rows_kept":55,"cut":false,"hidden":false,"merged":[]}
["Handleiding"]
["Doel:","Je gebruikt de TossToernooiPlanner voor het organiseren van een toss-toernooi: een gezelligheidstoernooi met een vrije inloop, waarbij iedereen tegen iedereen wedstrijden speelt in enkel- of dubbelspel. Misschien ken je het onder de naam tossavond of racketavond. Het is gemaakt met badminton in het achterhoofd, maar het is ook geschikt voor tennis, tafeltennis, squash en misschien ook wel voor jouw sport."]
["Kenmerken:","- Optimale wedstrijdplanner die deelnemers voortdurend evenwichtig indeelt op het tosstoernooi of de tossavond.\n- Inschrijven niet nodig: deelnemers kunnen zich ter plekke aanmelden.\n- Vrije inloop: laatkomers kunnen ook nog meedoen, mensen kunnen eerder stoppen of zich laten vervangen.\n- Gezelligheid voorop: deelnemers spelen in elke partij tegen steeds andere tegenstanders.\n"]
["Hoe werkt het in vogelvlucht:","Deze spreadsheet deelt (maximaal 300) spelers in, in partijen van 2 spelers of 2 dubbels per partij op een baan (maximaal 20) gedurende een opgegeven aantal rondes (maximaal 20). \nDeze indeling is zo dat elke speler/dubbel telkens tegen een andere tegenstander staat en bij 'wisselende dubbels': dezelfde speler niet samenspeelt met dezelfde partner (als er genoeg spelers zijn natuurlijk). Hierdoor speelt iedereen steeds weer met en tegen andere spelers.\nNa elke ronde hebben de spelers/dubbels ongeveer hetzelfde aantal partijen gespeeld. Dit maakt het mogelijk om ook tijdens het toernooi eerder te stoppen.\nNa elke ronde kunnen spelers/dubbels worden toegevoegd. Laatkomers kunnen dus alsnog meedoen.\nIn elke ronde kan je spelers/dubbels die uitvallen of even niet mee kunnen doen, buiten de planning houden.\nDe baanindeling wordt per ronde weergegeven op een aparte baanindeling, handig voor het maken van wedstrijdbriefjes.\nDe stand kan je per ronde per speler/dubbel bijhouden en de spreadsheet rekent uit wat het puntgemiddelde per speler/dubbel is en de stand op basis van het puntgemiddelde, zodat je winnaars kan aanwijzen.\nJe kan spelers een sterkte meegeven. De indeling is dan zo dat de partijen zo veel mogelijk in evenwicht zijn."]
[]
["Voorbereiding:","Vul de begintijd, # (= aantal) banen, # rondes, de rondetijd en de tijd tussen de rondes (Wisseltijd) in.\nKies de juiste spelvorm:\n- enkelspel\n- vaste dubbels (de mensen schrijven zich in met een vaste partner)\n- wisselende dubbels (de spelers schrijven zich individueel in, maar spelen met steeds weer andere partners)\nTip: je kan later altijd nog extra rondes toevoegen, of te veel geplande rondes niet spelen. No problemo."]
[null,"Voer de spelers/dubbels op:\n- Bij vaste dubbels zet je in één cel beide namen (bv. \"Marie en Jan\")\n- Laat geen cellen leeg.\n- Probeer geen rijen in te voegen, gewoon onderaan aansluiten. Je hoeft niet op de volgorde te letten, het wordt toch gehusseld."]
[]
[null,"Als je wilt, kan je speelsterktes opgeven:\nBij 'Ja (1,2,3,…)': de sterkte moet een geheel getal zijn. Geef voor elke speler een sterkte op, een getal tussen de 1 en 99. Tip: als je met maar 2 sterktes werkt, kies dan voor de ene '1' en voor de andere een veel hogere waarde, bv. '9'. Dat is duidelijker voor het planningsalgoritme.   \nBij 'Ja (Man/Vrouw): geef per speler aan of het een Man of Vrouw is. De indeling probeert waar mogelijk gemengd dubbels op de baan te plannen. Maar de regels dat je niet met dezelfde partner speelt én dat je evenveel wedstrijden speelt gaan voor, dus andere varianten komen ook voor. Als je per sé alleen gemengd dubbels wilt, dan moet je bij planningsvoorkeur Alleen Man+Vrouw opgeven.   "]
[]
[null,"Als je wilt kan je spelers/dubbels voor een specifieke ronde níet mee laten doen: vul de cel van die speelronde bij die speler/dubbel met het woord \"NIET\"\nTip: als organisator is het handig jezelf de eerste ronde NIET mee te laten doen, kan jij iets meer tijd besteden om de wedstrijdbriefjes van de volgende rondes te maken."]
[]
["Indelen: ","Maak het veld \"Indeling vasthouden t/m ronde\" leeg en druk op de knop \"Indelen\""]
[null,"Het systeem gaat nu indelen. Alle spelers worden gehusseld en ingedeeld op een baan. De baanindeling komt het het tabblad Baanindeling. Op het tabblad Spelers staat per speler per ronde op welke baan hij te vinden is.\n"]
["Macro-waarschuwing","Het indelen gaat m.b.v. een macro, dus dan moet je wel toestaan dat Microsoft Excel de macros uitvoert. \nDat kan in Excel 2007 onder Ontwikkelaars - macrobeveiliging. Nadat je de insteling hebt gewijzigd, Excel stoppen en herstarten. \nIn latere versies zie je onder het lint een waarschuwing, bv. \"BEVEILIGINGSWAARSCHUWING Macro's zijn uitgeschakeld\", dan kan je de macro's activieren door de knop \"Inhoud inschakelen\".\nIn Windows kan je de waarschuwing voorkomen door in de verkenner naar de gedownloade excel toe te navigeren. Dan de contextmenu openen (rechtermuisklik) en daarin Eigenschappen kiezen. Dan staat in tabje Algemeen helemaal onderaan een waarschuwing \"Dit bestand is afkomstig van een andere computer en wordt mogelijk geblokkeerd om deze computer beter te beveiligen\" met een vinkje erachter om de blokkering op te heffen."]
[null,"Hoe goed is de indeling?\nHet systeem streeft er naar om aan het einde van elke ronde iedereen evenveel partijen te laten spelen én dat iedereen steeds tegen andere tegenstanders en met andere partners op de baan staat. Dat lukt niet altijd. \nHoe kom je daar achter? Laat het systeem de kwaliteit tonen:\n- Het aantal partijen met dezelfde tegenstander moet laag, liefst 0, zijn.\n- Het aantal partijen met dezelfde partner moet laag, liefst 0, zijn. (alleen bij 'wisselende dubbels')\n- Het Gemiddeld sterkteverschil over alle wedstrijden moet laag zijn. (alleen als je werkt met sterktes)\n- Het Aantal Rondes met speler die 2 partijen meer speelt dan een ander moet laag zijn.\n\nJe kan nu 2 dingen doen: je planningsvoorkeur wijzigen en dan opnieuw indelen. Of meteen opnieuw (her)indelen tot je een mooie kwaliteit hebt getroffen.\nJe kan bij de planningsvoorkeur opgeven wat jouw voorkeur heeft:\n- Andere tegenstanders: het systeem gaat eerder proberen steeds andere tegenstanders te krijgen, da's wel zo gezellig.\n- Gelijk aantal partijen: het systeem streeft ernaar dat iedereen evenveel partijen speelt aan het einde van elke ronde, da's wel zo eerlijk.\n- Alleen Man+Vrouw: deze optie werkt bij de spelvorm Wisselende dubbels en als je de Spelersterkte gaat opgeven met Man/Vrouw. Het systeem gaat alleen gemengd dubbels, dus een man met een vrouw, op de baan plaatsen. Het spreekt voor zich dat het aantal combinaties hierdoor drastisch afneemt."]
[]
["Herindelen:","Als je niet tevreden bent over de indeling, kan je de toernooikenmerken wijzigen, het veld \"Indeling vasthouden t/m ronde\" leegmaken en weer op de knop drukken. Zolang het toernooi niet is begonnen, kan je steeds opnieuw indelen.\nHet heeft zin om een paar keer opnieuw in te delen, omdat het planningsalgoritme de spelers per indelingsronde opnieuw husselt. En dat pakt de ene keer een stuk beter uit dan de andere keer. \nKlopt de indeling wel, maar wil je misschien toch partners voor één partij wisselen, dan kan dat op het tabblad Baanindeling. Zolang de spelers maar op dezelfde baan blijven, blijft het te hanteren.\n"]
["Baannummers wijzigen:","Als je andere baannummers dan baan-1, -2, etc moet gebruiken, kan je na het plannen op de Tab Baanindeling die andere baannummers in de eerste kolom over de bestaande baannummers opvoeren. Let op: bij herindelen wordt het wel overschreven."]
[]
["Spelen:","Tevreden over de indeling: bewaar de spreadsheet \nAls er een waarschuwing over persoonlijke gegevens verschijnt: je kan het telkens gewoon accepteren en opslaan, óf het uitzetten: in Windows: Bestand - Opties - Vertrouwenscentrum - Instellingen voor het vertrouwenscentrum, en vink uit: Persoonlijke gegevens uit bestandseigenschappen verwijderen bij opslaan. In MacOS: Excel - Voorkeuren - Beveiliging: dezelfde instelling uitvinken."]
[null,"Je kan voorafgaand aan elke ronde speelbriefjes uitschrijven op basis van de baanindeling, vermeld daarop ook het rondenr en de baan.\nDe ronde kan gespeeld worden. \nNa afloop van elke ronde neem je de score per speler/dubbel op het tabblad 'Spelers'  in de witte cellen van de kolom R-[n] i.p.v. het baannummer.\nJe kan het handigste de standen per baan verwerken en daarvoor de kolom-filter gebruiken."]
["Alternatieve puntentelling: ","Je kan ervoor kiezen in plaats van de gehaalde punten, een alternatieve waardering, zoals 2 voor de winnaar, 1 bij gelijk spel en 0 bij verlies in te voeren. "]
["Stoppen:","Na elke ronde kan je het toernooi stoppen.\nOp het tabblad Spelers staat per speler zijn Stand, totaal #punten, #partijen en gemiddeld #punten per partij. \nDe Stand wordt bepaald door dat laatste: het gemiddeld #punten per partij.\nDe nr. 1, 2 en 3 (hoogste) en nr. laatst (laagste) zijn gekleurd.\nMaar je kan natuurlijk ook een prijs uitreiken voor degene met de meeste punten."]
["Laatkomers:","Ook tijdens het toernooi kan je laatkomers toevoegen:\n1. Voeg de naam van de speler onderaan de spelerslijst toe\n2. Vul het veld \"Indeling vasthouden t/m ronde\" met het aantal rondes waarvan je de indeling niet meer kunt of wilt wijzigen\n3. Druk op de knop \"Indelen\", de laatkomers worden ingedeeld in de nog te spelen rondes."]
["Uitvallers/pauzeerders:","Ook tijdens het toernooi kan je uitvallers uit de planning halen, of bij spelers een pauze inplannen:\n1. Vul in de de Tab Spelers de cellen van de rondes die de speler/dubbel niet meer kan spelen, met het woord \"NIET\"\n2. Vul het veld \"Indeling vasthouden t/m ronde\" met het aantal rondes waarvan je de indeling niet meer kunt of wilt wijzigen\n3. Druk op de knop \"Indelen\", de uitvallers worden niet meer ingedeeld in de nog te spelen rondes.\nTip: als de uitvaller tóch weer mee kan doen, kan je de cel van die ronde weer leegpoetsen en opnieuw indelen."]
["Ronde toevoegen:","Ook tijdens het toernooi kan je extra rondes toevoegen of weghalen:\n1. Vul het veld \"Rondes\" met het nieuwe aantal Rondes\n2. Als een speler deze nieuwe ronde niet kan/wil meespelen: vul die cel met het woord \"NIET\"\n3. Vul het veld \"Indeling vasthouden t/m ronde\" met het aantal rondes waarvan je de indeling niet meer kunt of wilt wijzigen\n4. Druk op de knop \"Indelen\""]
[]
["Layout aanpassen: ","Het is 'gewoon' een excel-spreadsheat, dus je kan elk layoutaspect: lettertype, rijhoogte, kolombreedte, etc. etc. aanpassen."]
[]
["Release notes"]
["v4.2","- Handleiding aangevuld over het toestaan van macro's en het uitzetten van de melding bij opslaan.\n- Bugje opgelost: het veld \"Indeling vasthouden tot en met ronde\" was default gevuld."]
["v4.1","- Bug opgelost: Als je het plannen start, verschijnt de fout \"Onvoldoende geheugen\". \nOorzaak: bug in Microsoft .NET Framework 4.8, die blijkt niet goed te werken, althans als je niet ook .NET Framework 3.5 hebt. Versie 4.1 maakt geen gebruik meer van de functie die de fout veroorzaakte.\n- Bug opgelost: bij grote aantallen spelers in combinatie met Wisselende dubbels, tref je vaker dan nodig dezelfde tegenstander.\nOorzaak: bij het bepalen van de 4e speler op de baan, werden de tegenstanders verkeerd meegeteld.\n- Bug opgelost: bij grote aantallen spelers in combinatie met Wisselende dubbels, tref je vaker dan nodig dezelfde partner.\nOorzaak: bij het bepalen van de 4e speler op de baan, werd zijn partner niet meegeteld."]
["v4.0","- Tab Spelers: aanvangstijdstippen kolom hoger gezet, zodat scores die op het tijdstip lijken, weer zijn in te voeren.\n- Tab handleiding: uitleg over een alternatieve puntentelling toegevoegd: bv. 3 voor de winnaar, 2 voor gelijkspel, 1 voor de verliezer.\n- Planningsmethode geheel herzien met 2 pluspunten: ook bij een klein aantal spelers die veel ronden spelen, blijft de planning optimaal. En als je met sterktes werkt, dan is de planning een stuk gevarieerder, en daardoor beter.\n- Je kan plannen met louter gemengd dubbels op de baan."]
["v3.2","- Bug opgelost: als een speler lang achter elkaar uitvalt, stopt het indelen. \nOorzaak: het aantal partijen dat de uitvaller had gespeeld, deed mee om bij het indelen van die ronde iedereen een gelijk aantal partijen te laten spelen."]
["v3.1","- Tab Spelers: ondersteunen van sorteren op kolom (met name de positiekolom was niet OK)."]
["V3.0","- Tab Spelers: je kan uitvallers buiten de planning halen, of spelers in een specifieke ronde buiten de planning halen.\n- Tab Spelers: je kan een planningsvoorkeur opgeven: of het aantal partijen na elke ronde gelijk houden, of zo veel mogelijk andere tegenstanders/partners plannen. De kwaliteit toont nu ook het aantal rondes waarbij (tenminste) één speler 2 partijen meer heeft gespeeld dan een andere speler.\n- Tab Spelers: aanvangstijdstippen toegevoegd.\n- Tab Baanindeling: aanvangstijdstippen toegevoegd.\n- Het plannen bij veel spelers op weinig banen houdt rekening met spelers die lang pauze hebben: die komen de ronde erna eerder aan bod.\n- Melding \"Het subscript valt buiten bereik\" opgelost. \nOorzaak: na het openen van een eerder bewaarde xls, kon de TossToernooiPlanner het eerder berekende schema niet inlezen. Dat is opgelost, tenminste als je een versie 3.0 (of hoger) bewaart met de Baanindeling in tact.\n- Melding \"400\" opgelost. \nOorzaak: bij het plannen van 20 rondes, werd een schoonmaakactie op een niet-bestaande cel uitgevoerd."]
["V2.4","- Tab Spelers: je kan de actuele stand in een kolom zien\n- Tab Spelers: je kan de spelersterkte opgeven als getal en als man/vrouw\n- Tab Spelers: je kan de kwaliteit van de indeling zien\n- Tab Spelers:  je kan de naam van een speler wijzigen, dan wijzigt zijn naam op de Tab Baanindeling mee\n- Tab Baanindeling: je kan de baannummers wijzigen, dan wijzigen de baannummers op de Tab Spelers mee"]
["V2.3","Baannamen gelijk gemaakt voor de twee tabs."]
["V2.2","Handleiding bijgewerkt."]
["V2.1","Je kan ronde's vast zetten, zodat je een extra ronde in kan plannen, of extra spelers (laatkomers) alsnog kan laten meedoen."]
["V2.0","Het systeem geschikt maken voor enkelspelindelingen en vaste dubbels."]
["v1.1","De eerste spelers worden - als dat kan - van de eerste ronde uitgesloten."]
["V1.0","Eerste versie"]
[]
["Toekomstige wijzigingen"]
["Beveiligen werkblad","Het werkblad tegen overschrijven beveiligen, zodat alleen de wijzigbare cellen overschreven kunnen worden.\nWorkaround: wijzig alleen de cellen met een witte achtergrond."]
["Baannummers opgeven","Ook inplannen als Baan1 niet beschikbaar is.\nWorkaround: dit kan je ook bereiken door na de indeling Baan-1 te zoek/vervangen door Baan-x over het hele werkblad."]
["Stand o.b.v. behaalde punten","De stand baseren op het echte aantal punten.\nWorkaround: je kan op de kolom #punten ook sorteren of filteren."]
[]
["Meer / anders?"]
[]
["Nieuwe versie?","De TossToernooiPlanning-excel wordt met elke nieuwe versie weer beter. Misschien is dat inmiddels al gebeurd. De laatste versie staat op de downloads-pagina van de site van OSM Badminton (https://www.osmbadminton.nl/media/downloads)"]
["Liever geen excel?","Er is ook een online website van de TossToernooiPlanner met nog meer mogelijkheden dan deze excel, ook op de site van OSM Badminton (https://www.osmbadminton.nl/tosstoernooiplanner)"]
["Andere wensen?","Stuur een email naar Ronald Koenis (r.koenis@xs4all.nl of https://www.osmbadminton.nl/contact/42 )."]